[Event "Titled Tuesday Blitz May 10 Early 2022"]
[White "Jobava, Baadur"]
[Black "Kazakouski, Valery"]
[WhiteFideId "13601520"]
[BlackFideId "13507443"]
[WhiteElo "2617"]
[BlackElo "2524"]
[Result "1-0"]
[Round "10"]
[TimeControl "180+1"]
[Date "2022.05.10"]
[WhiteClock "0:00:49"]
[BlackClock "0:00:15"]

1. b3 {[%clk 0:03:00]}  e5 {[%clk 0:02:58]} 2. Bb2 {[%clk 0:03:01]}  Nc6 {[%clk 0:02:58]} 3. Nf3 {[%clk 0:03:02]}  d6 {[%clk 0:02:51]} 4. d4 {[%clk 0:03:02]}  e4 {[%clk 0:02:46]} 5. d5 {[%clk 0:03:02]}  exf3 {[%clk 0:02:47]} 6. dxc6 {[%clk 0:03:02]}  bxc6 {[%clk 0:02:47]} 7. exf3 {[%clk 0:03:02]}  Nf6 {[%clk 0:02:46]} 8. Bd3 {[%clk 0:03:03]}  Be7 {[%clk 0:02:46]} 9. O-O {[%clk 0:03:03]}  O-O {[%clk 0:02:46]} 10. Re1 {[%clk 0:03:04]}  Nd7 {[%clk 0:02:44]} 11. c4 {[%clk 0:03:02]}  Bf6 {[%clk 0:02:44]} 12. Nc3 {[%clk 0:03:02]}  a5 {[%clk 0:02:43]} 13. Qc2 {[%clk 0:03:02]}  h6 {[%clk 0:02:42]} 14. Rad1 {[%clk 0:03:02]}  Nc5 {[%clk 0:02:40]} 15. Bh7+ {[%clk 0:03:02]}  Kh8 {[%clk 0:02:40]} 16. Bf5 {[%clk 0:03:02]}  Bxf5 {[%clk 0:02:39]} 17. Qxf5 {[%clk 0:03:03]}  Qc8 {[%clk 0:02:37]} 18. Qc2 {[%clk 0:02:59]}  Re8 {[%clk 0:02:30]} 19. g3 {[%clk 0:02:57]}  Qh3 {[%clk 0:02:25]} 20. Bc1 {[%clk 0:02:50]}  Re6 {[%clk 0:02:16]} 21. Rxe6 {[%clk 0:02:49]}  Nxe6 {[%clk 0:02:09]} 22. Be3 {[%clk 0:02:50]}  Bxc3 {[%clk 0:01:54]} 23. Qxc3 {[%clk 0:02:50]}  h5 {[%clk 0:01:49]} 24. Qc2 {[%clk 0:02:36]}  h4 {[%clk 0:01:41]} 25. Qe4 {[%clk 0:02:36]}  hxg3 {[%clk 0:01:38]} 26. fxg3 {[%clk 0:02:36]}  Ra6 {[%clk 0:01:33]} 27. Bd2 {[%clk 0:02:18]}  Qh7 {[%clk 0:01:30]} 28. Qxh7+ {[%clk 0:02:13]}  Kxh7 {[%clk 0:01:31]} 29. Bc3 {[%clk 0:02:14]}  c5 {[%clk 0:01:31]} 30. a4 {[%clk 0:02:05]}  Nd8 {[%clk 0:01:18]} 31. Kf2 {[%clk 0:02:05]}  Nc6 {[%clk 0:01:18]} 32. Rd3 {[%clk 0:02:02]}  Rb6 {[%clk 0:01:18]} 33. Bd2 {[%clk 0:01:58]}  Kg6 {[%clk 0:01:12]} 34. h4 {[%clk 0:01:57]}  Rb8 {[%clk 0:01:07]} 35. g4 {[%clk 0:01:57]}  f6 {[%clk 0:01:03]} 36. h5+ {[%clk 0:01:58]}  Kf7 {[%clk 0:01:03]} 37. f4 {[%clk 0:01:56]}  Rh8 {[%clk 0:00:55]} 38. Kg3 {[%clk 0:01:56]}  f5 {[%clk 0:00:55]} 39. Re3 {[%clk 0:01:45]}  fxg4 {[%clk 0:00:49]} 40. Kxg4 {[%clk 0:01:45]}  g6 {[%clk 0:00:49]} 41. hxg6+ {[%clk 0:01:45]}  Kxg6 {[%clk 0:00:50]} 42. Bc3 {[%clk 0:01:44]}  Rh1 {[%clk 0:00:48]} 43. Re6+ {[%clk 0:01:35]}  Kf7 {[%clk 0:00:48]} 44. Rf6+ {[%clk 0:01:35]}  Ke7 {[%clk 0:00:48]} 45. Rg6 {[%clk 0:01:34]}  Rg1+ {[%clk 0:00:27]} 46. Kh5 {[%clk 0:01:34]}  Rh1+ {[%clk 0:00:25]} 47. Kg5 {[%clk 0:01:35]}  Rg1+ {[%clk 0:00:25]} 48. Kh6 {[%clk 0:01:35]}  Rh1+ {[%clk 0:00:25]} 49. Kg7 {[%clk 0:01:35]}  Rf1 {[%clk 0:00:25]} 50. Rg4 {[%clk 0:01:28]}  Rf3 {[%clk 0:00:25]} 51. Bf6+ {[%clk 0:01:27]}  Ke6 {[%clk 0:00:25]} 52. Kg6 {[%clk 0:01:28]}  Nd4 {[%clk 0:00:23]} 53. Kg5 {[%clk 0:01:05]}  Nxb3 {[%clk 0:00:22]} 54. Rg1 {[%clk 0:01:05]}  Nd4 {[%clk 0:00:18]} 55. Re1+ {[%clk 0:01:05]}  Kd7 {[%clk 0:00:18]} 56. Re7+ {[%clk 0:01:04]}  Kc6 {[%clk 0:00:18]} 57. Kg4 {[%clk 0:01:03]}  Rf1 {[%clk 0:00:18]} 58. Re4 {[%clk 0:00:59]}  Rg1+ {[%clk 0:00:18]} 59. Kh5 {[%clk 0:00:59]}  Nf5 {[%clk 0:00:18]} 60. Re8 {[%clk 0:00:54]}  Kd7 {[%clk 0:00:18]} 61. Ra8 {[%clk 0:00:52]}  Ke6 {[%clk 0:00:19]} 62. Bg5 {[%clk 0:00:53]}  Rc1 {[%clk 0:00:15]} 63. Kg6 {[%clk 0:00:50]}  Nd4 {[%clk 0:00:15]} 64. f5+ {[%clk 0:00:49]} 1-0


[Site "https://www.chess.com"]

[Event "Titled Tuesday Blitz May 10 Early 2022"]
[White "Kosteniuk, Alexandra"]
[Black "Samunenkov, Ihor"]
[WhiteFideId "4128125"]
[BlackFideId "14187086"]
[WhiteElo "2469"]
[BlackElo "2409"]
[Result "0-1"]
[Round "10"]
[TimeControl "180+1"]
[Date "2022.05.10"]
[WhiteClock "0:00:03"]
[BlackClock "0:00:04"]

1. e4 {[%clk 0:03:00]}  c5 {[%clk 0:02:59]} 2. c3 {[%clk 0:03:00]}  d5 {[%clk 0:02:50]} 3. exd5 {[%clk 0:03:01]}  Qxd5 {[%clk 0:02:51]} 4. d4 {[%clk 0:03:01]}  Nf6 {[%clk 0:02:51]} 5. Nf3 {[%clk 0:03:01]}  e6 {[%clk 0:02:51]} 6. Be2 {[%clk 0:03:01]}  Nc6 {[%clk 0:02:48]} 7. O-O {[%clk 0:03:01]}  cxd4 {[%clk 0:02:43]} 8. cxd4 {[%clk 0:03:01]}  Be7 {[%clk 0:02:42]} 9. Nc3 {[%clk 0:03:01]}  Qd8 {[%clk 0:02:36]} 10. Bg5 {[%clk 0:02:58]}  O-O {[%clk 0:02:36]} 11. Rc1 {[%clk 0:02:58]}  b6 {[%clk 0:02:30]} 12. Bd3 {[%clk 0:02:46]}  Bb7 {[%clk 0:02:13]} 13. Bb1 {[%clk 0:02:46]}  Rc8 {[%clk 0:02:05]} 14. Re1 {[%clk 0:02:46]}  Nd5 {[%clk 0:01:59]} 15. h4 {[%clk 0:02:40]}  Ncb4 {[%clk 0:01:37]} 16. a3 {[%clk 0:02:32]}  Nxc3 {[%clk 0:01:36]} 17. Rxc3 {[%clk 0:02:32]}  Nd5 {[%clk 0:01:25]} 18. Rxc8 {[%clk 0:02:30]}  Qxc8 {[%clk 0:01:24]} 19. Qd3 {[%clk 0:02:30]}  g6 {[%clk 0:01:23]} 20. Rc1 {[%clk 0:02:15]}  Qd8 {[%clk 0:01:21]} 21. Bh6 {[%clk 0:02:16]}  Re8 {[%clk 0:01:20]} 22. h5 {[%clk 0:02:16]}  Bf6 {[%clk 0:01:19]} 23. hxg6 {[%clk 0:02:12]}  hxg6 {[%clk 0:01:19]} 24. Ne5 {[%clk 0:02:09]}  Ne7 {[%clk 0:01:08]} 25. Qe3 {[%clk 0:01:31]}  Nf5 {[%clk 0:01:02]} 26. Bxf5 {[%clk 0:01:30]}  exf5 {[%clk 0:01:03]} 27. Bf4 {[%clk 0:01:20]}  Qd5 {[%clk 0:01:02]} 28. Qg3 {[%clk 0:00:59]}  Bh4 {[%clk 0:00:43]} 29. Qh3 {[%clk 0:00:51]}  Bxf2+ {[%clk 0:00:29]} 30. Kxf2 {[%clk 0:00:51]}  Qxd4+ {[%clk 0:00:30]} 31. Kg3 {[%clk 0:00:52]}  Rxe5 {[%clk 0:00:19]} 32. Rc3 {[%clk 0:00:32]}  Re2 {[%clk 0:00:15]} 33. Qh6 {[%clk 0:00:23]}  Rxg2+ {[%clk 0:00:13]} 34. Kh3 {[%clk 0:00:23]}  Qd1 {[%clk 0:00:06]} 35. Rc8+ {[%clk 0:00:14]}  Bxc8 {[%clk 0:00:07]} 36. Kxg2 {[%clk 0:00:15]}  Bb7+ {[%clk 0:00:07]} 37. Kf2 {[%clk 0:00:15]}  Qf3+ {[%clk 0:00:05]} 38. Ke1 {[%clk 0:00:15]}  Qe4+ {[%clk 0:00:04]} 39. Kd2 {[%clk 0:00:14]}  Qd4+ {[%clk 0:00:04]} 40. Kc1 {[%clk 0:00:12]}  Qg1+ {[%clk 0:00:04]} 41. Kd2 {[%clk 0:00:12]}  Qf2+ {[%clk 0:00:04]} 42. Kc3 {[%clk 0:00:12]}  Qe1+ {[%clk 0:00:04]} 43. Bd2 {[%clk 0:00:09]}  Qe5+ {[%clk 0:00:04]} 44. Kb3 {[%clk 0:00:06]}  Bd5+ {[%clk 0:00:04]} 45. Kc2 {[%clk 0:00:06]}  Be4+ {[%clk 0:00:05]} 46. Kc1 {[%clk 0:00:05]}  Qc5+ {[%clk 0:00:03]} 47. Kd1 {[%clk 0:00:06]}  Qg1+ {[%clk 0:00:03]} 48. Ke2 {[%clk 0:00:05]}  Qg2+ {[%clk 0:00:04]} 49. Ke3 {[%clk 0:00:04]}  Qf3+ {[%clk 0:00:04]} 50. Kd4 {[%clk 0:00:05]}  Qd3+ {[%clk 0:00:05]} 51. Ke5 {[%clk 0:00:05]}  Qd5+ {[%clk 0:00:03]} 52. Kf6 {[%clk 0:00:04]}  Qd6+ {[%clk 0:00:03]} 53. Kg5 {[%clk 0:00:04]}  Qxd2+ {[%clk 0:00:04]} 54. Kf6 {[%clk 0:00:03]}  Qxh6 {[%clk 0:00:04]} 0-1


[Site "https://www.chess.com"]

[Event "Titled Tuesday Blitz May 10 Early 2022"]
[White "Kruckenhauser, Arthur"]
[Black "Bintang, Rasyid A. Hidayat"]
[WhiteFideId "1642812"]
[BlackFideId "7105355"]
[WhiteElo "2243"]
[BlackElo "2461"]
[Result "1/2-1/2"]
[Round "10"]
[TimeControl "180+1"]
[Date "2022.05.11"]
[WhiteClock "0:02:46"]
[BlackClock "0:01:56"]

1. Nf3 {[%clk 0:03:00]}  g6 {[%clk 0:02:59]} 2. g3 {[%clk 0:03:01]}  Bg7 {[%clk 0:02:59]} 3. Bg2 {[%clk 0:03:02]}  e5 {[%clk 0:02:59]} 4. O-O {[%clk 0:03:03]}  d5 {[%clk 0:03:00]} 5. d3 {[%clk 0:03:03]}  Ne7 {[%clk 0:02:58]} 6. e4 {[%clk 0:03:03]}  O-O {[%clk 0:02:53]} 7. Nc3 {[%clk 0:03:03]}  Nbc6 {[%clk 0:02:50]} 8. exd5 {[%clk 0:02:59]}  Nxd5 {[%clk 0:02:51]} 9. Nxe5 {[%clk 0:03:00]}  Nxc3 {[%clk 0:02:47]} 10. Nxc6 {[%clk 0:03:00]}  Nxd1 {[%clk 0:02:45]} 11. Nxd8 {[%clk 0:03:00]}  Nxb2 {[%clk 0:02:37]} 12. Nxb7 {[%clk 0:02:58]}  Bxb7 {[%clk 0:02:16]} 13. Bxb7 {[%clk 0:02:54]}  Rab8 {[%clk 0:02:15]} 14. Bf3 {[%clk 0:02:44]}  Nxd3 {[%clk 0:02:13]} 15. cxd3 {[%clk 0:02:45]}  Bxa1 {[%clk 0:02:13]} 16. Ba3 {[%clk 0:02:46]}  Rfd8 {[%clk 0:01:56]} 1/2-1/2


[Site "https://www.chess.com"]

[Event "Titled Tuesday Blitz May 10 Early 2022"]
[White "Lazavik, Denis"]
[Black "Xiong, Jeffery"]
[WhiteFideId "13515110"]
[BlackFideId "2047640"]
[WhiteElo "2437"]
[BlackElo "2727"]
[Result "0-1"]
[Round "10"]
[TimeControl "180+1"]
[Date "2022.05.10"]
[WhiteClock "0:00:05"]
[BlackClock "0:00:46"]

1. d4 {[%clk 0:03:00]}  d5 {[%clk 0:03:00]} 2. c4 {[%clk 0:03:01]}  e6 {[%clk 0:03:01]} 3. Nf3 {[%clk 0:03:01]}  dxc4 {[%clk 0:03:00]} 4. e3 {[%clk 0:03:00]}  a6 {[%clk 0:03:01]} 5. Bxc4 {[%clk 0:02:59]}  Nf6 {[%clk 0:03:01]} 6. O-O {[%clk 0:02:59]}  b5 {[%clk 0:03:01]} 7. Bd3 {[%clk 0:02:57]}  Bb7 {[%clk 0:03:02]} 8. a4 {[%clk 0:02:54]}  b4 {[%clk 0:03:02]} 9. b3 {[%clk 0:02:35]}  Nbd7 {[%clk 0:03:02]} 10. Bb2 {[%clk 0:02:35]}  Be7 {[%clk 0:03:03]} 11. Nbd2 {[%clk 0:02:36]}  O-O {[%clk 0:03:03]} 12. Qe2 {[%clk 0:02:36]}  c5 {[%clk 0:03:04]} 13. Rfd1 {[%clk 0:02:34]}  Nd5 {[%clk 0:02:56]} 14. Rac1 {[%clk 0:02:33]}  cxd4 {[%clk 0:02:43]} 15. Nxd4 {[%clk 0:02:32]}  Nc5 {[%clk 0:02:44]} 16. Bb1 {[%clk 0:02:19]}  Rc8 {[%clk 0:02:42]} 17. N2f3 {[%clk 0:02:15]}  Qa5 {[%clk 0:02:13]} 18. Ne5 {[%clk 0:01:49]}  Bf6 {[%clk 0:01:58]} 19. Nc4 {[%clk 0:01:23]}  Qc7 {[%clk 0:01:57]} 20. Nd2 {[%clk 0:00:58]}  Qe7 {[%clk 0:01:38]} 21. Ne4 {[%clk 0:00:28]}  Nxe4 {[%clk 0:01:32]} 22. Bxe4 {[%clk 0:00:28]}  Nc3 {[%clk 0:01:31]} 23. Bxc3 {[%clk 0:00:27]}  bxc3 {[%clk 0:01:32]} 24. Bb1 {[%clk 0:00:22]}  Qb4 {[%clk 0:01:26]} 25. Qc2 {[%clk 0:00:19]}  g6 {[%clk 0:01:26]} 26. Ne2 {[%clk 0:00:16]}  Bd5 {[%clk 0:01:25]} 27. Rxd5 {[%clk 0:00:08]}  exd5 {[%clk 0:01:26]} 28. Nf4 {[%clk 0:00:08]}  Rfd8 {[%clk 0:01:24]} 29. Nd3 {[%clk 0:00:09]}  Qe7 {[%clk 0:01:24]} 30. b4 {[%clk 0:00:09]}  d4 {[%clk 0:01:24]} 31. e4 {[%clk 0:00:06]}  Qxe4 {[%clk 0:01:24]} 32. Ba2 {[%clk 0:00:06]}  Re8 {[%clk 0:01:22]} 33. g3 {[%clk 0:00:04]}  Qe2 {[%clk 0:01:15]} 34. Qb3 {[%clk 0:00:05]}  Rc7 {[%clk 0:01:14]} 35. Nf4 {[%clk 0:00:04]}  Qd2 {[%clk 0:01:00]} 36. Rd1 {[%clk 0:00:04]}  Re1+ {[%clk 0:00:53]} 37. Rxe1 {[%clk 0:00:04]}  Qxe1+ {[%clk 0:00:54]} 38. Kg2 {[%clk 0:00:05]}  c2 {[%clk 0:00:53]} 39. Nd5 {[%clk 0:00:05]}  c1=Q {[%clk 0:00:50]} 40. Nxf6+ {[%clk 0:00:05]}  Kg7 {[%clk 0:00:46]} 0-1


[Site "https://www.chess.com"]

[Event "Titled Tuesday Blitz May 10 Early 2022"]
[White "Maevsky, Nikolay"]
[Black "Devaev, Alexander"]
[WhiteFideId "4198220"]
[BlackFideId "4169395"]
[WhiteElo "2149"]
[BlackElo "2185"]
[Result "1-0"]
[Round "10"]
[TimeControl "180+1"]
[Date "2022.05.11"]
[WhiteClock "0:00:10"]
[BlackClock "0:00:03"]

1. d4 {[%clk 0:03:00]}  Nf6 {[%clk 0:02:58]} 2. Nf3 {[%clk 0:03:00]}  e6 {[%clk 0:02:55]} 3. e3 {[%clk 0:03:00]}  c5 {[%clk 0:02:52]} 4. Bd3 {[%clk 0:03:00]}  b6 {[%clk 0:02:53]} 5. O-O {[%clk 0:02:59]}  Bb7 {[%clk 0:02:53]} 6. c4 {[%clk 0:02:59]}  d6 {[%clk 0:02:51]} 7. Nc3 {[%clk 0:02:57]}  Be7 {[%clk 0:02:51]} 8. d5 {[%clk 0:02:56]}  e5 {[%clk 0:02:52]} 9. e4 {[%clk 0:02:56]}  O-O {[%clk 0:02:51]} 10. a3 {[%clk 0:02:53]}  Nbd7 {[%clk 0:02:19]} 11. b4 {[%clk 0:02:51]}  a6 {[%clk 0:02:19]} 12. Rb1 {[%clk 0:02:51]}  Bc8 {[%clk 0:02:19]} 13. Bd2 {[%clk 0:02:41]}  Nh5 {[%clk 0:02:17]} 14. g3 {[%clk 0:02:32]}  g6 {[%clk 0:02:10]} 15. Ne1 {[%clk 0:02:28]}  Bg5 {[%clk 0:02:05]} 16. f4 {[%clk 0:02:13]}  Bh6 {[%clk 0:02:05]} 17. f5 {[%clk 0:02:08]}  Bxd2 {[%clk 0:01:37]} 18. Qxd2 {[%clk 0:02:08]}  Nhf6 {[%clk 0:01:38]} 19. Ng2 {[%clk 0:01:55]}  Kg7 {[%clk 0:01:20]} 20. Ne3 {[%clk 0:01:38]}  h5 {[%clk 0:01:09]} 21. Ng2 {[%clk 0:01:20]}  Rh8 {[%clk 0:01:05]} 22. h4 {[%clk 0:01:13]}  Ng4 {[%clk 0:01:02]} 23. Be2 {[%clk 0:01:07]}  Nh6 {[%clk 0:00:59]} 24. Qg5 {[%clk 0:00:48]}  Nf6 {[%clk 0:00:48]} 25. bxc5 {[%clk 0:00:42]}  bxc5 {[%clk 0:00:48]} 26. Rb3 {[%clk 0:00:30]}  Nh7 {[%clk 0:00:45]} 27. Qxd8 {[%clk 0:00:23]}  Rxd8 {[%clk 0:00:46]} 28. Ne3 {[%clk 0:00:21]}  Nf6 {[%clk 0:00:37]} 29. Rb6 {[%clk 0:00:21]}  Ra7 {[%clk 0:00:17]} 30. a4 {[%clk 0:00:21]}  Rb7 {[%clk 0:00:14]} 31. a5 {[%clk 0:00:21]}  Rdd7 {[%clk 0:00:12]} 32. Rfb1 {[%clk 0:00:19]}  Rbc7 {[%clk 0:00:06]} 33. Bf3 {[%clk 0:00:15]}  Rd8 {[%clk 0:00:06]} 34. fxg6 {[%clk 0:00:14]}  fxg6 {[%clk 0:00:06]} 35. Rc6 {[%clk 0:00:13]}  Rb7 {[%clk 0:00:03]} 36. Rbb6 {[%clk 0:00:10]} 1-0


[Site "https://www.chess.com"]

[Event "Titled Tuesday Blitz May 10 Early 2022"]
[White "Martin Carmona, Gaston Manuel"]
[Black "Skliarov, Viktor"]
[WhiteFideId "22284567"]
[BlackFideId "14106736"]
[WhiteElo "2162"]
[BlackElo "2229"]
[Result "1-0"]
[Round "10"]
[TimeControl "180+1"]
[Date "2022.05.11"]
[WhiteClock "0:00:14"]
[BlackClock "0:00:01"]

1. e4 {[%clk 0:03:00]}  c5 {[%clk 0:02:57]} 2. Nf3 {[%clk 0:03:01]}  Nc6 {[%clk 0:02:57]} 3. d4 {[%clk 0:03:02]}  cxd4 {[%clk 0:02:57]} 4. Nxd4 {[%clk 0:03:02]}  Nf6 {[%clk 0:02:58]} 5. Nc3 {[%clk 0:03:03]}  e5 {[%clk 0:02:58]} 6. Ndb5 {[%clk 0:03:04]}  d6 {[%clk 0:02:59]} 7. Bg5 {[%clk 0:03:04]}  a6 {[%clk 0:02:59]} 8. Na3 {[%clk 0:03:05]}  b5 {[%clk 0:02:59]} 9. Nd5 {[%clk 0:03:05]}  Be7 {[%clk 0:03:00]} 10. Bxf6 {[%clk 0:03:06]}  Bxf6 {[%clk 0:03:01]} 11. c4 {[%clk 0:03:07]}  b4 {[%clk 0:03:00]} 12. Nc2 {[%clk 0:03:07]}  a5 {[%clk 0:03:00]} 13. g3 {[%clk 0:03:08]}  Bg5 {[%clk 0:02:59]} 14. Bg2 {[%clk 0:03:08]}  O-O {[%clk 0:02:59]} 15. O-O {[%clk 0:03:09]}  Be6 {[%clk 0:02:57]} 16. Qd3 {[%clk 0:03:10]}  Bxd5 {[%clk 0:02:50]} 17. Qxd5 {[%clk 0:03:00]}  Qb6 {[%clk 0:02:50]} 18. h4 {[%clk 0:02:58]}  Bh6 {[%clk 0:02:49]} 19. b3 {[%clk 0:02:55]}  Ne7 {[%clk 0:02:32]} 20. Qd3 {[%clk 0:02:51]}  a4 {[%clk 0:02:28]} 21. Bh3 {[%clk 0:02:42]}  Qc5 {[%clk 0:02:21]} 22. Rfd1 {[%clk 0:02:38]}  Rfd8 {[%clk 0:02:10]} 23. Kg2 {[%clk 0:02:38]}  Ra6 {[%clk 0:01:54]} 24. Qe2 {[%clk 0:02:21]}  Rda8 {[%clk 0:01:48]} 25. Bd7 {[%clk 0:02:17]}  axb3 {[%clk 0:01:19]} 26. axb3 {[%clk 0:02:18]}  Rxa1 {[%clk 0:01:19]} 27. Nxa1 {[%clk 0:02:18]}  Ra7 {[%clk 0:00:57]} 28. Ba4 {[%clk 0:02:16]}  g6 {[%clk 0:00:42]} 29. Nc2 {[%clk 0:02:14]}  f5 {[%clk 0:00:33]} 30. h5 {[%clk 0:02:05]}  f4 {[%clk 0:00:14]} 31. hxg6 {[%clk 0:01:59]}  Nxg6 {[%clk 0:00:12]} 32. Rd5 {[%clk 0:01:59]}  Qc8 {[%clk 0:00:10]} 33. Rxd6 {[%clk 0:01:52]}  fxg3 {[%clk 0:00:10]} 34. fxg3 {[%clk 0:01:52]}  Rg7 {[%clk 0:00:10]} 35. Kh2 {[%clk 0:01:31]}  Nf4 {[%clk 0:00:08]} 36. Qf1 {[%clk 0:01:08]}  Bg5 {[%clk 0:00:08]} 37. Ne3 {[%clk 0:00:49]}  Qc5 {[%clk 0:00:08]} 38. Nf5 {[%clk 0:00:46]}  Rg6 {[%clk 0:00:04]} 39. Rd1 {[%clk 0:00:21]}  Ne6 {[%clk 0:00:02]} 40. Qg1 {[%clk 0:00:18]}  Nd4 {[%clk 0:00:01]} 41. Qf2 {[%clk 0:00:14]} 1-0


[Site "https://www.chess.com"]

[Event "Titled Tuesday Blitz May 10 Early 2022"]
[White "Matinian, Nikita"]
[Black "Reprintsev, Alexander"]
[WhiteFideId "24129100"]
[BlackFideId "14100541"]
[WhiteElo "2422"]
[BlackElo "2108"]
[Result "1-0"]
[Round "10"]
[TimeControl "180+1"]
[Date "2022.05.11"]
[WhiteClock "0:00:30"]
[BlackClock "0:00:09"]

1. e4 {[%clk 0:03:00]}  d5 {[%clk 0:02:58]} 2. exd5 {[%clk 0:03:00]}  Qxd5 {[%clk 0:02:57]} 3. Nc3 {[%clk 0:02:59]}  Qa5 {[%clk 0:02:55]} 4. Nf3 {[%clk 0:02:57]}  Nf6 {[%clk 0:02:54]} 5. Bc4 {[%clk 0:02:56]}  Nc6 {[%clk 0:02:52]} 6. O-O {[%clk 0:02:55]}  Bg4 {[%clk 0:02:51]} 7. h3 {[%clk 0:02:52]}  h5 {[%clk 0:02:51]} 8. b4 {[%clk 0:02:49]}  Qf5 {[%clk 0:02:33]} 9. Bd3 {[%clk 0:02:29]}  Bxf3 {[%clk 0:02:10]} 10. Bxf5 {[%clk 0:02:28]}  Bxd1 {[%clk 0:02:10]} 11. Rxd1 {[%clk 0:02:29]}  e6 {[%clk 0:02:07]} 12. Be4 {[%clk 0:02:24]}  Nxe4 {[%clk 0:01:35]} 13. Nxe4 {[%clk 0:02:25]}  Nxb4 {[%clk 0:01:32]} 14. Rb1 {[%clk 0:02:24]}  O-O-O {[%clk 0:01:31]} 15. Ng5 {[%clk 0:02:18]}  Rd7 {[%clk 0:01:30]} 16. c3 {[%clk 0:02:07]}  Nd3 {[%clk 0:01:25]} 17. a4 {[%clk 0:02:04]}  Bc5 {[%clk 0:01:20]} 18. Ne4 {[%clk 0:01:59]}  Be7 {[%clk 0:01:16]} 19. Kf1 {[%clk 0:01:55]}  f5 {[%clk 0:01:15]} 20. Ng3 {[%clk 0:01:54]}  h4 {[%clk 0:01:04]} 21. Ne2 {[%clk 0:01:52]}  Bg5 {[%clk 0:01:04]} 22. Ba3 {[%clk 0:01:49]}  e5 {[%clk 0:01:00]} 23. Ng1 {[%clk 0:01:43]}  e4 {[%clk 0:00:47]} 24. Ne2 {[%clk 0:01:43]}  Bf6 {[%clk 0:00:47]} 25. a5 {[%clk 0:01:23]}  a6 {[%clk 0:00:47]} 26. c4 {[%clk 0:01:21]}  g6 {[%clk 0:00:43]} 27. Nc1 {[%clk 0:01:11]}  Rhd8 {[%clk 0:00:40]} 28. Nb3 {[%clk 0:01:07]}  g5 {[%clk 0:00:31]} 29. Ke2 {[%clk 0:01:07]}  Nf4+ {[%clk 0:00:27]} 30. Kf1 {[%clk 0:01:07]}  Rd3 {[%clk 0:00:27]} 31. Bc5 {[%clk 0:01:03]}  Bc3 {[%clk 0:00:20]} 32. Be3 {[%clk 0:01:00]}  Be5 {[%clk 0:00:20]} 33. Nc5 {[%clk 0:00:59]}  Ra3 {[%clk 0:00:15]} 34. Nxb7 {[%clk 0:00:58]}  Rdd3 {[%clk 0:00:14]} 35. Nc5 {[%clk 0:00:58]}  Rd6 {[%clk 0:00:14]} 36. Nb3 {[%clk 0:00:51]}  Ne6 {[%clk 0:00:10]} 37. Ba7 {[%clk 0:00:31]}  Nd4 {[%clk 0:00:10]} 38. Nc5 {[%clk 0:00:30]}  Rxa5 {[%clk 0:00:09]} 39. Rb8# {[%clk 0:00:30]} 1-0


[Site "https://www.chess.com"]

[Event "Titled Tuesday Blitz May 10 Early 2022"]
[White "Melian, Juan Sebastian"]
[Black "Bach, Ngoc Thuy Duong"]
[WhiteFideId "3706575"]
[BlackFideId "12408956"]
[WhiteElo "1851"]
[BlackElo "1862"]
[Result "0-1"]
[Round "10"]
[TimeControl "180+1"]
[Date "2022.05.11"]
[WhiteClock "0:00:05"]
[BlackClock "0:00:06"]

1. e4 {[%clk 0:03:00]}  c5 {[%clk 0:02:59]} 2. Nf3 {[%clk 0:02:57]}  d6 {[%clk 0:02:57]} 3. Bb5+ {[%clk 0:02:56]}  Nc6 {[%clk 0:02:57]} 4. c3 {[%clk 0:02:55]}  Bd7 {[%clk 0:02:50]} 5. d4 {[%clk 0:02:54]}  a6 {[%clk 0:02:45]} 6. Ba4 {[%clk 0:02:48]}  b5 {[%clk 0:02:40]} 7. Bb3 {[%clk 0:02:43]}  c4 {[%clk 0:02:39]} 8. Bc2 {[%clk 0:02:42]}  e5 {[%clk 0:02:39]} 9. O-O {[%clk 0:02:39]}  Nf6 {[%clk 0:02:30]} 10. d5 {[%clk 0:02:30]}  Ne7 {[%clk 0:02:29]} 11. Ne1 {[%clk 0:02:31]}  Ng6 {[%clk 0:02:20]} 12. f4 {[%clk 0:02:16]}  Bg4 {[%clk 0:01:44]} 13. Nf3 {[%clk 0:02:08]}  exf4 {[%clk 0:01:43]} 14. h3 {[%clk 0:02:07]}  Bh5 {[%clk 0:01:41]} 15. Qe1 {[%clk 0:01:53]}  Be7 {[%clk 0:01:40]} 16. Nd4 {[%clk 0:01:51]}  O-O {[%clk 0:01:30]} 17. Bxf4 {[%clk 0:01:49]}  Nxf4 {[%clk 0:01:30]} 18. Rxf4 {[%clk 0:01:50]}  Bg6 {[%clk 0:01:30]} 19. Nd2 {[%clk 0:01:46]}  Nh5 {[%clk 0:01:28]} 20. Rf1 {[%clk 0:01:44]}  Bh4 {[%clk 0:01:28]} 21. Qe3 {[%clk 0:01:42]}  Re8 {[%clk 0:01:23]} 22. Nc6 {[%clk 0:01:33]}  Qg5 {[%clk 0:01:21]} 23. Qxg5 {[%clk 0:01:32]}  Bxg5 {[%clk 0:01:20]} 24. Nf3 {[%clk 0:01:21]}  Be3+ {[%clk 0:01:20]} 25. Kh2 {[%clk 0:01:22]}  Bf4+ {[%clk 0:01:13]} 26. Kg1 {[%clk 0:01:20]}  Ng3 {[%clk 0:01:12]} 27. Rfe1 {[%clk 0:01:19]}  Nxe4 {[%clk 0:01:05]} 28. a4 {[%clk 0:01:16]}  Kf8 {[%clk 0:01:00]} 29. axb5 {[%clk 0:01:09]}  axb5 {[%clk 0:00:48]} 30. Rxa8 {[%clk 0:01:10]}  Rxa8 {[%clk 0:00:47]} 31. Bxe4 {[%clk 0:01:10]}  Bg3 {[%clk 0:00:45]} 32. Bxg6 {[%clk 0:00:37]}  Bxe1 {[%clk 0:00:44]} 33. Nxe1 {[%clk 0:00:37]}  hxg6 {[%clk 0:00:45]} 34. Kf2 {[%clk 0:00:20]}  Ra2 {[%clk 0:00:42]} 35. Nc2 {[%clk 0:00:13]}  Rxb2 {[%clk 0:00:42]} 36. Nd4 {[%clk 0:00:13]}  Ke7 {[%clk 0:00:34]} 37. Ke3 {[%clk 0:00:13]}  Kf6 {[%clk 0:00:30]} 38. Kd2 {[%clk 0:00:12]}  Ke5 {[%clk 0:00:28]} 39. Kc1 {[%clk 0:00:12]}  Ra2 {[%clk 0:00:23]} 40. Kb1 {[%clk 0:00:12]}  Ra8 {[%clk 0:00:21]} 41. Nxb5 {[%clk 0:00:12]}  Rb8 {[%clk 0:00:19]} 42. Nd4 {[%clk 0:00:11]}  Kxd5 {[%clk 0:00:19]} 43. Kc2 {[%clk 0:00:11]}  Kc5 {[%clk 0:00:18]} 44. Nc7 {[%clk 0:00:07]}  Rb7 {[%clk 0:00:07]} 45. Na6+ {[%clk 0:00:06]}  Kd5 {[%clk 0:00:07]} 46. Nb4+ {[%clk 0:00:05]}  Rxb4 {[%clk 0:00:07]} 47. cxb4 {[%clk 0:00:04]}  Kxd4 {[%clk 0:00:07]} 48. g4 {[%clk 0:00:04]}  g5 {[%clk 0:00:07]} 49. Kd2 {[%clk 0:00:03]}  c3+ {[%clk 0:00:06]} 50. Kc2 {[%clk 0:00:04]}  Kc4 {[%clk 0:00:06]} 51. b5 {[%clk 0:00:04]}  Kxb5 {[%clk 0:00:07]} 52. h4 {[%clk 0:00:05]}  gxh4 {[%clk 0:00:06]} 0-1


[Site "https://www.chess.com"]